[Event "Titled Tuesday Blitz November 08 Late 2022"]
[White "Young, Ryan"]
[Black "Brodowski, Piotr"]
[WhiteFideId "2049945"]
[BlackFideId "1124480"]
[WhiteElo "2285"]
[BlackElo "2351"]
[Result "0-1"]
[Round "01"]
[TimeControl "180+1"]
[Date "2022.11.09"]
[WhiteClock "0:00:02"]
[BlackClock "0:00:19"]

1. e4 {[%clk 0:02:55]}  d6 {[%clk 0:03:00]} 2. d4 {[%clk 0:02:55]}  g6 {[%clk 0:03:00]} 3. Nc3 {[%clk 0:02:54]}  Bg7 {[%clk 0:03:00]} 4. Nf3 {[%clk 0:02:43]}  a6 {[%clk 0:03:00]} 5. a4 {[%clk 0:02:42]}  Nd7 {[%clk 0:02:55]} 6. Bc4 {[%clk 0:02:35]}  e6 {[%clk 0:02:53]} 7. h3 {[%clk 0:02:32]}  Ne7 {[%clk 0:02:53]} 8. Qe2 {[%clk 0:02:32]}  O-O {[%clk 0:02:50]} 9. O-O {[%clk 0:02:32]}  b6 {[%clk 0:02:51]} 10. e5 {[%clk 0:02:24]}  Bb7 {[%clk 0:02:42]} 11. exd6 {[%clk 0:02:14]}  cxd6 {[%clk 0:02:42]} 12. Be3 {[%clk 0:02:11]}  Nf5 {[%clk 0:02:37]} 13. Rad1 {[%clk 0:02:07]}  Qc7 {[%clk 0:02:26]} 14. Bb3 {[%clk 0:02:07]}  Rac8 {[%clk 0:02:25]} 15. Rfe1 {[%clk 0:02:06]}  Nf6 {[%clk 0:02:23]} 16. Bg5 {[%clk 0:02:00]}  Rfe8 {[%clk 0:02:18]} 17. Qd3 {[%clk 0:01:46]}  h6 {[%clk 0:02:10]} 18. Be3 {[%clk 0:01:43]}  Bxf3 {[%clk 0:02:05]} 19. gxf3 {[%clk 0:01:40]}  Qb7 {[%clk 0:02:01]} 20. d5 {[%clk 0:01:27]}  e5 {[%clk 0:02:00]} 21. Ne4 {[%clk 0:01:24]}  Nh5 {[%clk 0:01:04]} 22. c3 {[%clk 0:01:24]}  Ra8 {[%clk 0:00:56]} 23. Ra1 {[%clk 0:01:21]}  Qe7 {[%clk 0:00:55]} 24. Kh2 {[%clk 0:01:16]}  Qh4 {[%clk 0:00:52]} 25. Rg1 {[%clk 0:01:07]}  Nf4 {[%clk 0:00:46]} 26. Bxf4 {[%clk 0:01:04]}  Qxf4+ {[%clk 0:00:45]} 27. Kh1 {[%clk 0:00:58]}  Qh4 {[%clk 0:00:40]} 28. Kh2 {[%clk 0:00:55]}  Qe7 {[%clk 0:00:40]} 29. Bc2 {[%clk 0:00:49]}  Nh4 {[%clk 0:00:39]} 30. Qe2 {[%clk 0:00:40]}  f5 {[%clk 0:00:38]} 31. Ng3 {[%clk 0:00:39]}  Qf6 {[%clk 0:00:36]} 32. Rad1 {[%clk 0:00:34]}  e4 {[%clk 0:00:34]} 33. fxe4 {[%clk 0:00:31]}  f4 {[%clk 0:00:34]} 34. Nf1 {[%clk 0:00:20]}  f3 {[%clk 0:00:35]} 35. Qe3 {[%clk 0:00:18]}  Ng2 {[%clk 0:00:31]} 36. Qxb6 {[%clk 0:00:14]}  Qf4+ {[%clk 0:00:28]} 37. Ng3 {[%clk 0:00:14]}  h5 {[%clk 0:00:28]} 38. Rd4 {[%clk 0:00:11]}  Bxd4 {[%clk 0:00:24]} 39. Qxd4 {[%clk 0:00:12]}  h4 {[%clk 0:00:25]} 40. Qb6 {[%clk 0:00:04]}  hxg3+ {[%clk 0:00:23]} 41. fxg3 {[%clk 0:00:04]}  Qe5 {[%clk 0:00:23]} 42. Qc7 {[%clk 0:00:03]}  Re7 {[%clk 0:00:22]} 43. Qc6 {[%clk 0:00:02]}  Rf8 {[%clk 0:00:22]} 44. Rf1 {[%clk 0:00:02]}  Ne3 {[%clk 0:00:20]} 45. Rf2 {[%clk 0:00:02]}  Ng4+ {[%clk 0:00:18]} 46. hxg4 {[%clk 0:00:01]}  Rh7+ {[%clk 0:00:18]} 47. Kg1 {[%clk 0:00:01]}  Qxg3+ {[%clk 0:00:19]} 48. Kf1 {[%clk 0:00:02]}  Rh1# {[%clk 0:00:19]} 0-1


[Site "https://www.chess.com"]

[Event "Titled Tuesday Blitz November 08 Late 2022"]
[White "Zhu, Jiner"]
[Black "Gasparyan, David"]
[WhiteFideId "8608059"]
[BlackFideId "13311980"]
[WhiteElo "2384"]
[BlackElo "2330"]
[Result "1-0"]
[Round "01"]
[TimeControl "180+1"]
[Date "2022.11.09"]
[WhiteClock "0:01:04"]
[BlackClock "0:00:04"]

1. c4 {[%clk 0:03:00]}  c5 {[%clk 0:02:56]} 2. Nf3 {[%clk 0:03:00]}  Nc6 {[%clk 0:02:56]} 3. Nc3 {[%clk 0:02:59]}  Nf6 {[%clk 0:02:51]} 4. d4 {[%clk 0:02:59]}  cxd4 {[%clk 0:02:52]} 5. Nxd4 {[%clk 0:02:59]}  Nxd4 {[%clk 0:02:43]} 6. Qxd4 {[%clk 0:02:58]}  d6 {[%clk 0:02:44]} 7. e4 {[%clk 0:02:58]}  Qa5 {[%clk 0:02:35]} 8. f3 {[%clk 0:02:54]}  g6 {[%clk 0:02:33]} 9. Be3 {[%clk 0:02:54]}  Bg7 {[%clk 0:02:33]} 10. Rc1 {[%clk 0:02:50]}  O-O {[%clk 0:02:30]} 11. Qd2 {[%clk 0:02:51]}  Be6 {[%clk 0:02:17]} 12. Be2 {[%clk 0:02:50]}  Rac8 {[%clk 0:02:17]} 13. b3 {[%clk 0:02:50]}  a6 {[%clk 0:02:13]} 14. Kf2 {[%clk 0:02:47]}  Rfe8 {[%clk 0:02:06]} 15. Rhd1 {[%clk 0:02:45]}  Nd7 {[%clk 0:02:05]} 16. Nd5 {[%clk 0:02:40]}  Qxd2 {[%clk 0:02:03]} 17. Bxd2 {[%clk 0:02:40]}  Bxd5 {[%clk 0:02:03]} 18. cxd5 {[%clk 0:02:40]}  b5 {[%clk 0:02:00]} 19. Be3 {[%clk 0:02:25]}  Nc5 {[%clk 0:01:45]} 20. Kf1 {[%clk 0:02:20]}  b4 {[%clk 0:01:39]} 21. Rc4 {[%clk 0:02:08]}  a5 {[%clk 0:01:31]} 22. f4 {[%clk 0:01:51]}  Bc3 {[%clk 0:01:27]} 23. e5 {[%clk 0:01:50]}  Nd7 {[%clk 0:01:04]} 24. Rxc8 {[%clk 0:01:32]}  Rxc8 {[%clk 0:01:05]} 25. Bg4 {[%clk 0:01:32]}  Rc7 {[%clk 0:00:58]} 26. e6 {[%clk 0:01:30]}  Nc5 {[%clk 0:00:53]} 27. exf7+ {[%clk 0:01:28]}  Kxf7 {[%clk 0:00:54]} 28. f5 {[%clk 0:01:21]}  h5 {[%clk 0:00:48]} 29. fxg6+ {[%clk 0:01:20]}  Kxg6 {[%clk 0:00:48]} 30. Bf3 {[%clk 0:01:20]}  Rc8 {[%clk 0:00:38]} 31. Ke2 {[%clk 0:01:18]}  Ra8 {[%clk 0:00:35]} 32. g4 {[%clk 0:01:13]}  h4 {[%clk 0:00:27]} 33. Bxc5 {[%clk 0:01:10]}  dxc5 {[%clk 0:00:27]} 34. d6 {[%clk 0:01:10]}  exd6 {[%clk 0:00:26]} 35. Bxa8 {[%clk 0:01:10]}  Be5 {[%clk 0:00:24]} 36. h3 {[%clk 0:01:09]}  Kg5 {[%clk 0:00:23]} 37. Kf3 {[%clk 0:01:03]}  Kf6 {[%clk 0:00:18]} 38. Ke4 {[%clk 0:01:03]}  Ke6 {[%clk 0:00:18]} 39. Bd5+ {[%clk 0:01:02]}  Ke7 {[%clk 0:00:17]} 40. Rf1 {[%clk 0:01:03]}  Ke8 {[%clk 0:00:17]} 41. Rf7 {[%clk 0:01:04]}  a4 {[%clk 0:00:17]} 42. bxa4 {[%clk 0:01:04]}  Kd8 {[%clk 0:00:11]} 43. a5 {[%clk 0:01:03]}  c4 {[%clk 0:00:08]} 44. Bxc4 {[%clk 0:01:02]}  b3 {[%clk 0:00:06]} 45. axb3 {[%clk 0:01:01]}  Bh2 {[%clk 0:00:04]} 46. a6 {[%clk 0:01:01]}  Bg1 {[%clk 0:00:04]} 47. a7 {[%clk 0:01:01]}  Bxa7 {[%clk 0:00:02]} 48. Rxa7 {[%clk 0:01:02]}  Kc8 {[%clk 0:00:02]} 49. g5 {[%clk 0:01:03]}  Kb8 {[%clk 0:00:02]} 50. Rf7 {[%clk 0:01:03]}  Kc8 {[%clk 0:00:02]} 51. g6 {[%clk 0:01:04]}  Kb8 {[%clk 0:00:03]} 52. g7 {[%clk 0:01:04]}  d5+ {[%clk 0:00:04]} 53. Bxd5 {[%clk 0:01:04]} 1-0


[Site "https://www.chess.com"]

[Event "Titled Tuesday Blitz November 08 Late 2022"]
[White "Adewumi, Tanitoluwa"]
[Black "Wieczorek, Oskar"]
[WhiteFideId "30966396"]
[BlackFideId "1133950"]
[WhiteElo "2551"]
[BlackElo "2794"]
[Result "0-1"]
[Round "02"]
[TimeControl "180+1"]
[Date "2022.11.09"]
[WhiteClock "0:00:10"]
[BlackClock "0:00:56"]

1. e4 {[%clk 0:02:40]}  c5 {[%clk 0:02:58]} 2. Nf3 {[%clk 0:02:36]}  e6 {[%clk 0:02:59]} 3. g3 {[%clk 0:02:31]}  Nc6 {[%clk 0:02:58]} 4. Bg2 {[%clk 0:02:25]}  Nf6 {[%clk 0:02:59]} 5. d3 {[%clk 0:02:25]}  Be7 {[%clk 0:02:47]} 6. O-O {[%clk 0:02:20]}  d5 {[%clk 0:02:45]} 7. Qe2 {[%clk 0:02:20]}  Rb8 {[%clk 0:02:40]} 8. Bf4 {[%clk 0:02:15]}  Ra8 {[%clk 0:02:39]} 9. Bc1 {[%clk 0:02:07]}  b5 {[%clk 0:02:23]} 10. Re1 {[%clk 0:01:48]}  b4 {[%clk 0:02:05]} 11. Bf4 {[%clk 0:01:38]}  a5 {[%clk 0:01:59]} 12. Nbd2 {[%clk 0:01:37]}  Ba6 {[%clk 0:01:55]} 13. Ne5 {[%clk 0:01:15]}  Nd4 {[%clk 0:01:51]} 14. Qd1 {[%clk 0:01:13]}  Bb7 {[%clk 0:01:29]} 15. c3 {[%clk 0:01:08]}  Nc6 {[%clk 0:01:29]} 16. Qa4 {[%clk 0:00:48]}  Rc8 {[%clk 0:01:25]} 17. Qb5 {[%clk 0:00:46]}  Ba8 {[%clk 0:01:22]} 18. exd5 {[%clk 0:00:34]}  Nxd5 {[%clk 0:01:12]} 19. Ndc4 {[%clk 0:00:30]}  O-O {[%clk 0:01:08]} 20. Nxc6 {[%clk 0:00:18]}  Bxc6 {[%clk 0:01:07]} 21. Qxa5 {[%clk 0:00:17]}  bxc3 {[%clk 0:01:02]} 22. Bxd5 {[%clk 0:00:13]}  Qxd5 {[%clk 0:01:00]} 23. Re4 {[%clk 0:00:10]}  Qxd3 {[%clk 0:00:56]} 0-1


[Site "https://www.chess.com"]

[Event "Titled Tuesday Blitz November 08 Late 2022"]
[White "Aghasiyev, Kamal"]
[Black "Sarana, Alexey"]
[WhiteFideId "13402854"]
[BlackFideId "24133795"]
[WhiteElo "2341"]
[BlackElo "2708"]
[Result "0-1"]
[Round "02"]
[TimeControl "180+1"]
[Date "2022.11.08"]
[WhiteClock "0:00:05"]
[BlackClock "0:00:50"]

1. d4 {[%clk 0:02:24]}  Nf6 {[%clk 0:02:59]} 2. c4 {[%clk 0:02:22]}  e6 {[%clk 0:02:59]} 3. Nc3 {[%clk 0:02:18]}  d5 {[%clk 0:02:59]} 4. cxd5 {[%clk 0:02:17]}  exd5 {[%clk 0:03:00]} 5. Bg5 {[%clk 0:02:17]}  c6 {[%clk 0:03:00]} 6. Qc2 {[%clk 0:02:17]}  h6 {[%clk 0:02:59]} 7. Bh4 {[%clk 0:02:15]}  Be7 {[%clk 0:03:00]} 8. e3 {[%clk 0:02:15]}  O-O {[%clk 0:03:00]} 9. Bd3 {[%clk 0:02:15]}  c5 {[%clk 0:03:00]} 10. Nf3 {[%clk 0:02:11]}  Nc6 {[%clk 0:03:00]} 11. a3 {[%clk 0:02:09]}  c4 {[%clk 0:02:58]} 12. Bf5 {[%clk 0:02:07]}  Be6 {[%clk 0:02:42]} 13. Bxe6 {[%clk 0:02:01]}  fxe6 {[%clk 0:02:43]} 14. O-O {[%clk 0:02:01]}  Qe8 {[%clk 0:02:40]} 15. e4 {[%clk 0:01:55]}  Qh5 {[%clk 0:02:39]} 16. Bxf6 {[%clk 0:01:36]}  Bxf6 {[%clk 0:02:36]} 17. Rad1 {[%clk 0:01:35]}  Rad8 {[%clk 0:02:31]} 18. Rfe1 {[%clk 0:01:23]}  a6 {[%clk 0:02:30]} 19. exd5 {[%clk 0:01:11]}  exd5 {[%clk 0:02:31]} 20. h3 {[%clk 0:01:06]}  Rd6 {[%clk 0:02:17]} 21. Qe2 {[%clk 0:00:50]}  b5 {[%clk 0:01:48]} 22. Ne5 {[%clk 0:00:48]}  Qxe2 {[%clk 0:01:47]} 23. Rxe2 {[%clk 0:00:48]}  Na5 {[%clk 0:01:42]} 24. Ng4 {[%clk 0:00:44]}  Bg5 {[%clk 0:01:29]} 25. Re5 {[%clk 0:00:42]}  Rfd8 {[%clk 0:01:25]} 26. Ne3 {[%clk 0:00:41]}  Nc6 {[%clk 0:01:16]} 27. Rxd5 {[%clk 0:00:39]}  Bxe3 {[%clk 0:01:16]} 28. Rxd6 {[%clk 0:00:36]}  Bxf2+ {[%clk 0:01:15]} 29. Kxf2 {[%clk 0:00:36]}  Rxd6 {[%clk 0:01:16]} 30. d5 {[%clk 0:00:26]}  Ne5 {[%clk 0:01:16]} 31. Ne4 {[%clk 0:00:26]}  Rd8 {[%clk 0:01:16]} 32. b3 {[%clk 0:00:11]}  cxb3 {[%clk 0:01:10]} 33. d6 {[%clk 0:00:09]}  b2 {[%clk 0:01:10]} 34. Rb1 {[%clk 0:00:08]}  Nc4 {[%clk 0:01:08]} 35. Ke2 {[%clk 0:00:08]}  Kf7 {[%clk 0:01:05]} 36. Kd3 {[%clk 0:00:08]}  Ke6 {[%clk 0:01:02]} 37. a4 {[%clk 0:00:05]}  Kd5 {[%clk 0:00:49]} 38. axb5 {[%clk 0:00:04]}  axb5 {[%clk 0:00:50]} 39. Nc3+ {[%clk 0:00:05]}  Kc5 {[%clk 0:00:50]} 0-1


[Site "https://www.chess.com"]

[Event "Titled Tuesday Blitz November 08 Late 2022"]
[White "Ali Abdullahi, Farah"]
[Black "Coleman, Maxx"]
[WhiteFideId "16100212"]
[BlackFideId "2027119"]
[WhiteElo "2260"]
[BlackElo "2278"]
[Result "0-1"]
[Round "02"]
[TimeControl "180+1"]
[Date "2022.11.09"]
[WhiteClock "0:00:03"]
[BlackClock "0:01:43"]

1. b3 {[%clk 0:03:00]}  Nf6 {[%clk 0:02:55]} 2. Bb2 {[%clk 0:03:00]}  g6 {[%clk 0:02:56]} 3. e3 {[%clk 0:03:01]}  Bg7 {[%clk 0:02:56]} 4. Nf3 {[%clk 0:03:01]}  O-O {[%clk 0:02:57]} 5. c4 {[%clk 0:03:01]}  d6 {[%clk 0:02:57]} 6. Be2 {[%clk 0:03:01]}  b6 {[%clk 0:02:57]} 7. d4 {[%clk 0:03:01]}  Bb7 {[%clk 0:02:57]} 8. d5 {[%clk 0:03:02]}  Nbd7 {[%clk 0:02:58]} 9. Bd3 {[%clk 0:03:01]}  c6 {[%clk 0:02:58]} 10. e4 {[%clk 0:03:01]}  Nc5 {[%clk 0:02:57]} 11. Qe2 {[%clk 0:02:52]}  e6 {[%clk 0:02:56]} 12. dxc6 {[%clk 0:02:07]}  Bxc6 {[%clk 0:02:56]} 13. Nbd2 {[%clk 0:02:05]}  d5 {[%clk 0:02:51]} 14. cxd5 {[%clk 0:02:02]}  exd5 {[%clk 0:02:51]} 15. e5 {[%clk 0:01:51]}  Nfe4 {[%clk 0:02:51]} 16. O-O {[%clk 0:01:47]}  Re8 {[%clk 0:02:51]} 17. b4 {[%clk 0:01:42]}  Nxd3 {[%clk 0:02:38]} 18. Qxd3 {[%clk 0:01:40]}  Qd7 {[%clk 0:02:33]} 19. Rfe1 {[%clk 0:01:36]}  Rad8 {[%clk 0:02:22]} 20. Bd4 {[%clk 0:01:31]}  Bb5 {[%clk 0:02:19]} 21. Qe3 {[%clk 0:01:28]}  Nd6 {[%clk 0:02:14]} 22. Qb3 {[%clk 0:01:23]}  Nf5 {[%clk 0:02:09]} 23. a4 {[%clk 0:01:10]}  Bc4 {[%clk 0:02:04]} 24. Qc3 {[%clk 0:01:00]}  Rc8 {[%clk 0:02:04]} 25. Nxc4 {[%clk 0:00:45]}  Rxc4 {[%clk 0:02:05]} 26. Qb2 {[%clk 0:00:45]}  Nxd4 {[%clk 0:02:03]} 27. Nxd4 {[%clk 0:00:44]}  Rxe5 {[%clk 0:02:01]} 28. Rxe5 {[%clk 0:00:35]}  Bxe5 {[%clk 0:02:02]} 29. Rd1 {[%clk 0:00:32]}  Qxa4 {[%clk 0:01:59]} 30. Rd2 {[%clk 0:00:13]}  Rxb4 {[%clk 0:01:55]} 31. Qc1 {[%clk 0:00:08]}  Rxd4 {[%clk 0:01:50]} 32. Rc2 {[%clk 0:00:05]}  Rc4 {[%clk 0:01:43]} 33. g3 {[%clk 0:00:03]}  Qxc2 {[%clk 0:01:43]} 0-1


[Site "https://www.chess.com"]

[Event "Titled Tuesday Blitz November 08 Late 2022"]
[White "Ansh M Shah"]
[Black "Hansen, Eric"]
[WhiteFideId "25033379"]
[BlackFideId "2606771"]
[WhiteElo "2084"]
[BlackElo "2568"]
[Result "0-1"]
[Round "02"]
[TimeControl "180+1"]
[Date "2022.11.09"]
[WhiteClock "0:00:03"]
[BlackClock "0:00:13"]

1. d4 {[%clk 0:03:00]}  Nf6 {[%clk 0:02:53]} 2. c4 {[%clk 0:03:00]}  e6 {[%clk 0:02:54]} 3. g3 {[%clk 0:03:00]}  d5 {[%clk 0:02:54]} 4. Bg2 {[%clk 0:03:00]}  Bb4+ {[%clk 0:02:54]} 5. Nd2 {[%clk 0:03:00]}  O-O {[%clk 0:02:53]} 6. Nf3 {[%clk 0:03:00]}  h6 {[%clk 0:02:52]} 7. O-O {[%clk 0:03:01]}  b6 {[%clk 0:02:52]} 8. Ne5 {[%clk 0:03:00]}  Bb7 {[%clk 0:02:49]} 9. a3 {[%clk 0:02:59]}  Be7 {[%clk 0:02:43]} 10. b4 {[%clk 0:02:57]}  c5 {[%clk 0:02:36]} 11. dxc5 {[%clk 0:02:54]}  bxc5 {[%clk 0:02:36]} 12. b5 {[%clk 0:02:55]}  Qc7 {[%clk 0:02:34]} 13. Bb2 {[%clk 0:02:52]}  Nbd7 {[%clk 0:02:32]} 14. Nxd7 {[%clk 0:02:49]}  Nxd7 {[%clk 0:02:33]} 15. Qc2 {[%clk 0:02:49]}  Rac8 {[%clk 0:02:29]} 16. Rfd1 {[%clk 0:02:28]}  Rfd8 {[%clk 0:02:27]} 17. Rac1 {[%clk 0:02:26]}  d4 {[%clk 0:02:23]} 18. Bxb7 {[%clk 0:02:24]}  Qxb7 {[%clk 0:02:24]} 19. Qe4 {[%clk 0:02:21]}  Qc7 {[%clk 0:02:21]} 20. Nf3 {[%clk 0:02:06]}  Nf6 {[%clk 0:02:20]} 21. Qc2 {[%clk 0:02:03]}  Bd6 {[%clk 0:02:20]} 22. e3 {[%clk 0:01:41]}  Qb7 {[%clk 0:02:20]} 23. Qe2 {[%clk 0:01:40]}  e5 {[%clk 0:02:20]} 24. Nh4 {[%clk 0:01:35]}  Re8 {[%clk 0:02:07]} 25. Nf5 {[%clk 0:01:23]}  Bf8 {[%clk 0:02:07]} 26. Nh4 {[%clk 0:01:02]}  Rcd8 {[%clk 0:01:56]} 27. Qf3 {[%clk 0:00:47]}  Qd7 {[%clk 0:01:48]} 28. Qf5 {[%clk 0:00:45]}  Qb7 {[%clk 0:01:41]} 29. Qf3 {[%clk 0:00:44]}  Qb6 {[%clk 0:01:37]} 30. Nf5 {[%clk 0:00:36]}  e4 {[%clk 0:01:23]} 31. Qg2 {[%clk 0:00:26]}  Qe6 {[%clk 0:01:22]} 32. g4 {[%clk 0:00:23]}  d3 {[%clk 0:01:20]} 33. h3 {[%clk 0:00:22]}  Nh7 {[%clk 0:01:16]} 34. Ng3 {[%clk 0:00:20]}  Ng5 {[%clk 0:01:16]} 35. Nh5 {[%clk 0:00:20]}  Nf3+ {[%clk 0:01:07]} 36. Kh1 {[%clk 0:00:20]}  f6 {[%clk 0:01:05]} 37. Nf4 {[%clk 0:00:20]}  Qd6 {[%clk 0:00:52]} 38. Nxd3 {[%clk 0:00:18]}  Nh4 {[%clk 0:00:48]} 39. Qg3 {[%clk 0:00:16]}  Qxg3 {[%clk 0:00:40]} 40. fxg3 {[%clk 0:00:17]}  exd3 {[%clk 0:00:40]} 41. gxh4 {[%clk 0:00:17]}  Rxe3 {[%clk 0:00:40]} 42. Rd2 {[%clk 0:00:14]}  Bd6 {[%clk 0:00:32]} 43. Rcd1 {[%clk 0:00:13]}  Rxh3+ {[%clk 0:00:26]} 44. Kg2 {[%clk 0:00:12]}  Rg3+ {[%clk 0:00:25]} 45. Kf2 {[%clk 0:00:12]}  Bf4 {[%clk 0:00:25]} 46. Bc3 {[%clk 0:00:04]}  Rh3 {[%clk 0:00:24]} 47. Kg2 {[%clk 0:00:04]}  Rh2+ {[%clk 0:00:22]} 48. Kf3 {[%clk 0:00:04]}  Bxd2 {[%clk 0:00:21]} 49. Bxd2 {[%clk 0:00:04]}  Rxh4 {[%clk 0:00:20]} 50. Bf4 {[%clk 0:00:04]}  h5 {[%clk 0:00:18]} 51. gxh5 {[%clk 0:00:03]}  Rd4 {[%clk 0:00:18]} 52. Be3 {[%clk 0:00:03]}  Rxc4 {[%clk 0:00:15]} 53. Rxd3 {[%clk 0:00:03]}  Rxh5 {[%clk 0:00:15]} 54. Rd8+ {[%clk 0:00:02]}  Kh7 {[%clk 0:00:16]} 55. Rd7 {[%clk 0:00:03]}  Rh3+ {[%clk 0:00:15]} 56. Ke2 {[%clk 0:00:03]}  Rc2+ {[%clk 0:00:15]} 57. Kd3 {[%clk 0:00:04]}  Ra2 {[%clk 0:00:14]} 58. Rxa7 {[%clk 0:00:04]}  c4+ {[%clk 0:00:13]} 59. Kd4 {[%clk 0:00:04]}  c3 {[%clk 0:00:13]} 60. Re7 {[%clk 0:00:03]}  Rxa3 {[%clk 0:00:12]} 61. b6 {[%clk 0:00:03]}  Rb3 {[%clk 0:00:13]} 62. b7 {[%clk 0:00:03]}  c2 {[%clk 0:00:13]} 63. Bd2 {[%clk 0:00:03]}  Rh4+ {[%clk 0:00:11]} 64. Kc5 {[%clk 0:00:03]}  Rh2 {[%clk 0:00:11]} 65. Bc1 {[%clk 0:00:03]}  Rh1 {[%clk 0:00:11]} 66. Bf4 {[%clk 0:00:02]}  c1=Q+ {[%clk 0:00:11]} 67. Bxc1 {[%clk 0:00:03]}  Rxc1+ {[%clk 0:00:12]} 68. Kd6 {[%clk 0:00:03]}  Rcb1 {[%clk 0:00:13]} 69. Kc6 {[%clk 0:00:03]}  Rb6+ {[%clk 0:00:12]} 70. Kc5 {[%clk 0:00:03]}  Rxb7 {[%clk 0:00:13]} 0-1


[Site "https://www.chess.com"]

[Event "Titled Tuesday Blitz November 08 Late 2022"]
[White "Arbunic Castro, Giovanna"]
[Black "Dzierzak, Radoslaw"]
[WhiteFideId "3400549"]
[BlackFideId "1161407"]
[WhiteElo "1878"]
[BlackElo "2111"]
[Result "0-1"]
[Round "02"]
[TimeControl "180+1"]
[Date "2022.11.09"]
[WhiteClock "0:01:13"]
[BlackClock "0:01:07"]

1. e4 {[%clk 0:03:00]}  c6 {[%clk 0:03:00]} 2. d4 {[%clk 0:02:59]}  d5 {[%clk 0:03:00]} 3. e5 {[%clk 0:02:58]}  c5 {[%clk 0:03:00]} 4. dxc5 {[%clk 0:02:57]}  Nc6 {[%clk 0:03:01]} 5. Bb5 {[%clk 0:02:55]}  e6 {[%clk 0:02:59]} 6. Be3 {[%clk 0:02:51]}  Nh6 {[%clk 0:02:57]} 7. f4 {[%clk 0:02:41]}  Nf5 {[%clk 0:02:25]} 8. Bf2 {[%clk 0:02:33]}  Qa5+ {[%clk 0:02:22]} 9. Nc3 {[%clk 0:02:29]}  d4 {[%clk 0:02:11]} 10. Bxd4 {[%clk 0:02:23]}  Nxd4 {[%clk 0:02:04]} 11. Qxd4 {[%clk 0:02:20]}  Bd7 {[%clk 0:02:03]} 12. Bxc6 {[%clk 0:01:57]}  Bxc6 {[%clk 0:02:02]} 13. O-O-O {[%clk 0:01:55]}  Bxc5 {[%clk 0:01:50]} 14. Qd2 {[%clk 0:01:48]}  O-O {[%clk 0:01:41]} 15. Nf3 {[%clk 0:01:44]}  Bb4 {[%clk 0:01:29]} 16. Ng5 {[%clk 0:01:37]}  Rfd8 {[%clk 0:01:19]} 17. Qe3 {[%clk 0:01:27]}  Bxc3 {[%clk 0:01:14]} 18. bxc3 {[%clk 0:01:24]}  Qa3+ {[%clk 0:01:09]} 19. Kb1 {[%clk 0:01:21]}  Bd5 {[%clk 0:01:09]} 20. c4 {[%clk 0:01:13]}  Qxe3 {[%clk 0:01:07]} 0-1


[Site "https://www.chess.com"]

[Event "Titled Tuesday Blitz November 08 Late 2022"]
[White "Arnold, Ken"]
[Black "Salman, Pavel"]
[WhiteFideId "2056836"]
[BlackFideId "24153753"]
[WhiteElo "2317"]
[BlackElo "2187"]
[Result "0-1"]
[Round "02"]
[TimeControl "180+1"]
[Date "2022.11.09"]
[WhiteClock "0:00:15"]
[BlackClock "0:00:23"]

1. d4 {[%clk 0:03:00]}  Nf6 {[%clk 0:02:57]} 2. c4 {[%clk 0:03:00]}  c5 {[%clk 0:02:58]} 3. d5 {[%clk 0:03:00]}  b5 {[%clk 0:02:58]} 4. cxb5 {[%clk 0:02:59]}  a6 {[%clk 0:02:59]} 5. b6 {[%clk 0:02:59]}  e6 {[%clk 0:02:58]} 6. dxe6 {[%clk 0:02:56]}  fxe6 {[%clk 0:02:58]} 7. Bd2 {[%clk 0:02:56]}  Qxb6 {[%clk 0:02:58]} 8. Bc3 {[%clk 0:02:54]}  Be7 {[%clk 0:02:58]} 9. e3 {[%clk 0:02:54]}  Bb7 {[%clk 0:02:59]} 10. Nf3 {[%clk 0:02:54]}  O-O {[%clk 0:02:59]} 11. Be2 {[%clk 0:02:54]}  d5 {[%clk 0:02:55]} 12. Na3 {[%clk 0:02:51]}  Nbd7 {[%clk 0:02:55]} 13. O-O {[%clk 0:02:51]}  Ne4 {[%clk 0:02:54]} 14. Rc1 {[%clk 0:02:29]}  Ndf6 {[%clk 0:02:44]} 15. Be5 {[%clk 0:02:20]}  Ng4 {[%clk 0:02:39]} 16. Bg3 {[%clk 0:02:14]}  Rf7 {[%clk 0:02:27]} 17. Qc2 {[%clk 0:02:02]}  Raf8 {[%clk 0:02:26]} 18. Nb1 {[%clk 0:01:59]}  d4 {[%clk 0:02:13]} 19. exd4 {[%clk 0:01:52]}  cxd4 {[%clk 0:02:14]} 20. Nbd2 {[%clk 0:01:46]}  Nxg3 {[%clk 0:02:08]} 21. hxg3 {[%clk 0:01:44]}  e5 {[%clk 0:02:03]} 22. Bc4 {[%clk 0:01:38]}  h5 {[%clk 0:01:53]} 23. Ne4 {[%clk 0:01:35]}  Qh6 {[%clk 0:01:40]} 24. Bxf7+ {[%clk 0:01:13]}  Rxf7 {[%clk 0:01:41]} 25. Rce1 {[%clk 0:01:06]}  h4 {[%clk 0:01:38]} 26. gxh4 {[%clk 0:01:02]}  Bxh4 {[%clk 0:01:36]} 27. Qb3 {[%clk 0:00:37]}  Bd8 {[%clk 0:01:04]} 28. Nd6 {[%clk 0:00:31]}  Qxd6 {[%clk 0:01:01]} 29. Nxe5 {[%clk 0:00:20]}  Nxe5 {[%clk 0:00:52]} 30. f4 {[%clk 0:00:19]}  Qd5 {[%clk 0:00:27]} 31. Qxd5 {[%clk 0:00:18]}  Bxd5 {[%clk 0:00:28]} 32. fxe5 {[%clk 0:00:18]}  Rxf1+ {[%clk 0:00:29]} 33. Kxf1 {[%clk 0:00:18]}  Kf7 {[%clk 0:00:28]} 34. Rd1 {[%clk 0:00:18]}  Bb6 {[%clk 0:00:27]} 35. b3 {[%clk 0:00:17]}  Ke6 {[%clk 0:00:27]} 36. Kf2 {[%clk 0:00:16]}  Kxe5 {[%clk 0:00:27]} 37. Kg3 {[%clk 0:00:17]}  Be4 {[%clk 0:00:25]} 38. Rh1 {[%clk 0:00:15]}  d3 {[%clk 0:00:24]} 39. Rh8 {[%clk 0:00:15]}  d2 {[%clk 0:00:23]} 40. Rd8 {[%clk 0:00:15]}  Bxd8 {[%clk 0:00:23]} 0-1


[Site "https://www.chess.com"]

[Event "Titled Tuesday Blitz November 08 Late 2022"]
[White "Ballester Llagaria, Luis Eduardo"]
[Black "Romero Ruscalleda, Josep"]
[WhiteFideId "2297620"]
[BlackFideId "2231859"]
[WhiteElo "2344"]
[BlackElo "2183"]
[Result "0-1"]
[Round "02"]
[TimeControl "180+1"]
[Date "2022.11.09"]
[WhiteClock "0:00:53"]
[BlackClock "0:01:03"]

1. e4 {[%clk 0:03:00]}  g6 {[%clk 0:03:00]} 2. d4 {[%clk 0:02:59]}  Bg7 {[%clk 0:03:01]} 3. Nc3 {[%clk 0:03:00]}  d6 {[%clk 0:03:01]} 4. Be3 {[%clk 0:03:00]}  a6 {[%clk 0:03:01]} 5. f4 {[%clk 0:03:01]}  b5 {[%clk 0:03:01]} 6. Nf3 {[%clk 0:03:01]}  Bb7 {[%clk 0:02:59]} 7. Bd3 {[%clk 0:03:01]}  Nf6 {[%clk 0:02:57]} 8. e5 {[%clk 0:03:00]}  Nd5 {[%clk 0:02:53]} 9. Nxd5 {[%clk 0:02:59]}  Bxd5 {[%clk 0:02:53]} 10. O-O {[%clk 0:02:59]}  O-O {[%clk 0:02:53]} 11. Qe1 {[%clk 0:02:54]}  Nd7 {[%clk 0:02:50]} 12. Qh4 {[%clk 0:02:52]}  Bxf3 {[%clk 0:02:50]} 13. Rxf3 {[%clk 0:02:53]}  e6 {[%clk 0:02:42]} 14. Qf2 {[%clk 0:02:44]}  d5 {[%clk 0:02:38]} 15. g4 {[%clk 0:02:32]}  f6 {[%clk 0:02:32]} 16. Rf1 {[%clk 0:02:13]}  Qe7 {[%clk 0:02:07]} 17. Rh3 {[%clk 0:02:09]}  fxe5 {[%clk 0:02:02]} 18. dxe5 {[%clk 0:02:10]}  Nxe5 {[%clk 0:01:59]} 19. Bc5 {[%clk 0:02:10]}  Nxd3 {[%clk 0:01:54]} 20. Bxe7 {[%clk 0:02:02]}  Nxf2 {[%clk 0:01:54]} 21. Rxf2 {[%clk 0:02:03]}  Rf7 {[%clk 0:01:50]} 22. Bc5 {[%clk 0:02:03]}  Bxb2 {[%clk 0:01:48]} 23. Re3 {[%clk 0:02:03]}  Re8 {[%clk 0:01:45]} 24. f5 {[%clk 0:01:51]}  e5 {[%clk 0:01:35]} 25. f6 {[%clk 0:01:37]}  e4 {[%clk 0:01:33]} 26. g5 {[%clk 0:01:32]}  Re5 {[%clk 0:01:20]} 27. h4 {[%clk 0:01:30]}  d4 {[%clk 0:01:18]} 28. Re1 {[%clk 0:01:22]}  e3 {[%clk 0:01:13]} 29. Rf4 {[%clk 0:01:02]}  Rxc5 {[%clk 0:01:12]} 30. Re4 {[%clk 0:01:02]}  Rxc2 {[%clk 0:01:07]} 31. Re8+ {[%clk 0:00:53]}  Rf8 {[%clk 0:01:06]} 32. Re7 {[%clk 0:00:54]}  Rc1 {[%clk 0:01:03]} 33. Rxc1 {[%clk 0:00:53]}  Bxc1 {[%clk 0:01:03]} 34. Rxc7 {[%clk 0:00:53]} 0-1


[Site "https://www.chess.com"]